[Event "Budapest One Week IM-A 03-2025"]
[Site "Budapest"]
[Date "2025.03.17"]
[Round "1.1"]
[White "Horvath, David"]
[Black "Turzo, Attila"]
[Result "1-0"]
[Annotator "NA RC"]
[ECO "D15"]
[WhiteElo "2279"]
[BlackElo "2272"]
[PlyCount "39"]
[EventDate "2025.03.17"]
[EventType "tourn"]
[EventCountry "HUN"]
[SourceTitle "playchess.com"]
[Source "ChessBase"]
[SourceQuality "1"]
[TimeControl "5400+30"]

1. d4 {[%emt 0:00:08]} d5 {[%emt 0:00:10]} 2. c4 {[%emt 0:00:05]} c6 {[%emt 0:00:06]} 3. Nf3 {[%emt 0:00:06]} Nf6 {[%emt 0:00:12]} 4. Nc3 {[%emt 0:00:04]} a6 {[%emt 0:00:22]} 5. e3 {[%emt 0:00:09]} Bf5 {[%emt 0:00:21]} 6. Ne5 {[%emt 0:01:31]} b5 {[%emt 0:31:59]} 7. cxd5 {[%emt 0:11:13]} cxd5 {[%emt 0:00:10]} 8. Bd2 {[%emt 0:02:27]} Bd7 {[%emt 0:13:40]} 9. a4 {[%emt 0:38:08]} b4 {[%emt 0:02:04]} 10. Nxd5 {[%emt 0:00:53]} Nxd5 {[%emt 0:01:30]} 11. Nxf7 {[%emt 0:00:05]} Kxf7 {[%emt 0:00:25]} 12. Qh5+ {[%emt 0:00:03]} Kf6 {[%emt 0:14:21]} 13. Qe5+ {[%emt 0:00:08]} Kg6 {[%emt 0:00:06]} 14. Bd3+ {[%emt 0:00:28]} Kh6 {[%emt 0:00:06]} 15. e4+ {[%emt 0:07:55]} Kg6 {[%emt 0:00:07]} 16. Qxd5 {[%emt 0:00:05]} e6 {[%emt 0:07:11]} 17. Qxa8 {[%emt 0:02:19]} Bc6 {[%emt 0:04:56]} 18. Qa7 {[%emt 0:00:16]} Nd7 {[%emt 0:00:54]} 19. Qxa6 {[%emt 0:02:13]} Nb8 {[%emt 0:01:07]} 20. Qc4 {[%emt 0:00:09]} 1-0

[Event "Budapest One Week IM-A 03-2025"]
[Site "Budapest"]
[Date "2025.03.17"]
[Round "1.2"]
[White "Rydstrom, Tom"]
[Black "Foldes, Marton Gabor"]
[Result "1-0"]
[Annotator "TA"]
[ECO "B40"]
[WhiteElo "2301"]
[BlackElo "2332"]
[PlyCount "69"]
[EventDate "2025.03.17"]
[EventType "tourn"]
[EventCountry "HUN"]
[SourceTitle "playchess.com"]
[Source "ChessBase"]
[SourceQuality "1"]
[TimeControl "5400+30"]

{[%evp 19,69,-24,-10,-20,-1,-13,-1,0,69,93,71,86,98,79,219,185,186,22,35,0,39,-26,56,-37,0,0,0,0,0,-13,-8,-60,106,43,189,219,176,108,477,443,488,483,536,518,691,455,522,522,486,485,498,476]} 1. e4 {[%emt 0:00:01]} c5 {[%emt 0:00:09]} 2. Nf3 {[%emt 0:00:05]} e6 {[%emt 0:00:09]} 3. d4 {[%emt 0:00:04]} cxd4 {[%emt 0:00:05]} 4. Nxd4 {[%emt 0:00:03]} Nf6 {[%emt 0:00:43]} 5. Nc3 {[%emt 0:02:45]} Nc6 {[%emt 0:00:08]} 6. Nxc6 {[%emt 0:02:22]} bxc6 {[%emt 0:00:08]} 7. Bd3 {[%emt 0:00:03]} e5 {[%emt 0:05:10]} 8. O-O {[%emt 0:01:47]} Be7 {[%emt 0:02:11]} 9. b3 {[%emt 0:04:11]} O-O {[%emt 0:01:19]} 10. Bb2 {[%emt 0:00:54]} d5 {[%emt 0:10:27]} 11. Qe2 {[%emt 0:01:13] B45: Sicilian Four Knights.} Re8 {[%emt 0:04:03]} 12. h3 {[%emt 0:03:44]} (12. exd5 cxd5 13. Nd1 (13. Qxe5 Ba3 $15) 13... Bc5 $17) 12... Bd6 $146 {[%emt 0:07:24]} ({Predecessor:} 12... h6 13. Rad1 Bd7 14. Qf3 d4 15. Nb1 Be6 16. Nd2 Qc7 17. Nc4 Nd7 18. Qg3 Bg5 {½-½ Buljubasic,S (2273)-Skvortsov,A (2343) Travnik op 2024 (5)}) 13. Rad1 {[%emt 0:09:11] The position is equal.} Be6 {[%emt 0:09:01]} (13... Bb7 $11) 14. exd5 $1 $14 {[%emt 0:10:33]} cxd5 {[%emt 0:05:00][%cal Oa7a6] [#]} 15. Bb5 {[%emt 0:01:00] White is more active.} Re7 {[%emt 0:30:53]} 16. Bc6 {[%emt 0:00:18][%csl LRa8,LRd5]} d4 {[%emt 0:00:53]} 17. Bxa8 $18 {[%emt 0:07:22]} Qxa8 {[%emt 0:00:21]} 18. Qa6 $2 {[%emt 0:15:27]} (18. Nb5 $18 Bb8 19. f4) 18... Bc7 $11 {[%emt 0:04:23]} 19. Nb5 {[%emt 0:07:20][%cal Ob2a3]} Bb6 $1 {[%emt 0:00:18]} 20. Rfe1 {[%emt 0:04:41]} (20. c3 $1 $14) 20... Ne4 {[%emt 0:08:25]} ({Better is} 20... Nd5 $11 21. Nxd4 (21. Rxe5 $2 Bc8 $19) 21... exd4 22. Bxd4 Nb4 (22... Nf4 23. f3 $11)) 21. Re2 {[%emt 0:05:15]} (21. Na3 $14) 21... Bd5 {[%emt 0:01:34] and ...Nc5 would now be decisive} 22. Nxd4 {[%emt 0:15:56]} exd4 {[%emt 0:06:48]} 23. Bxd4 {[%emt 0:00:01]} Bb7 {[%emt 0:01:53] This pair of bishops is nice.} (23... Bxd4 $5 24. Rxd4 Nc5 25. Rxe7 (25. Qb5 Rxe2 26. Qxe2 Bxg2 $11) 25... Nxa6 26. Rxd5 h5 $16) 24. Qd3 {[%emt 0:03:19]} Rd7 {[%emt 0:00:18]} 25. Qe3 {[%emt 0:00:16]} (25. c3 $1 $11) 25... Nf6 $2 {[%emt 0:00:42] [#]} (25... Qd8 $1 $15 {stays ahead.} 26. c3 h6) 26. Red2 $1 $16 {[%emt 0:00:42]} Nd5 {[%emt 0:00:31]} (26... Bxg2 $2 {loses.} 27. Bxb6 Rxd2 28. Rxd2 $18 (28. Qxd2 axb6 29. Qd8+ Ne8 $11)) (26... Rxd4 $1 $14 27. Rxd4 Bxg2) 27. Qe5 $18 {[%emt 0:00:56][%csl Gd4][%cal Re5g7]} Bxd4 {[%emt 0:00:17]} 28. Rxd4 $40 {[%emt 0:00:01][%mdl 128] and c4 should not be overlooked White has strong attack.} Kf8 $2 {[%emt 0:00:45][%mdl 8192]} (28... Rd8 $16) 29. c4 {[%emt 0:00:33][%cal Bc2c4,Bc4d5][%mdl 32] White is clearly winning.} Re7 {[%emt 0:00:29]} 30. Qh5 {[%emt 0:00:42]} ({Don't take} 30. Qg3 Qe8 31. cxd5 Bc8) 30... Qe8 {[%emt 0:00:31]} 31. cxd5 {[%emt 0:00:35]} Re5 {[%emt 0:00:14]} 32. Qf3 {[%emt 0:00:55]} Re1+ {[%emt 0:00:12]} 33. Rxe1 {[%emt 0:00:22]} Qxe1+ {[%emt 0:00:01]} 34. Kh2 {[%emt 0:00:05]} Qe5+ {[%emt 0:00:14]} 35. Qf4 {[%emt 0:00:03] Weighted Error Value: White=0.38/Black=0.60  Loses game:     	---       	Black=1      Missed win:     	White=1     	---        Mistake:       	White=3     	Black=5      Inaccurate:     	White=2     	Black=2      OK:         	White=6     	Black=2      Best:        	White=4     	Black=1      Strong:       	White=2     	Black=1} 1-0

[Event "Budapest One Week IM-A 03-2025"]
[Site "Budapest"]
[Date "2025.03.17"]
[Round "1.3"]
[White "Tscheuschner, Georg"]
[Black "Ratsma, Midas"]
[Result "1-0"]
[Annotator "TA"]
[ECO "A06"]
[WhiteElo "2236"]
[BlackElo "2268"]
[PlyCount "59"]
[EventDate "2025.03.17"]
[EventType "tourn"]
[EventCountry "HUN"]
[SourceTitle "playchess.com"]
[Source "ChessBase"]
[SourceQuality "1"]
[TimeControl "5400+30"]

{[%evp 9,59,4,1,3,9,0,6,8,9,0,0,1,0,3,23,8,21,18,28,22,27,0,31,22,56,35,31,35,37,0,0,0,79,65,104,108,134,123,100,72,475,375,900,491,491,491,414,302,29988,29989,29989,29990]} 1. Nf3 {[%emt 0:00:02]} d5 {[%emt 0:00:08]} 2. c4 {[%emt 0:00:06]} e6 {[%emt 0:00:05]} 3. e3 {[%emt 0:00:06]} Nf6 {[%emt 0:00:10]} 4. Nc3 {[%emt 0:00:05]} Bd6 {[%emt 0:00:07]} 5. b3 {[%emt 0:00:20]} O-O {[%emt 0:00:13]} 6. Bb2 {[%emt 0:00:04] A17: English Opening: 1...Nf6 with ...Bb4.} Re8 {[%emt 0:00:14]} 7. Nb5 $1 {[%emt 0:00:34][%mdl 4] outshines the older 7.d4.} Be7 {[%emt 0:00:48]} 8. Be5 {[%emt 0:00:34] The position is equal.} Na6 {[%emt 0:00:08]} 9. Be2 {[%emt 0:02:17]} c6 {[%emt 0:00:54]} 10. Nc3 {[%emt 0:00:05]} Ne4 {[%emt 0:00:38]} 11. Qc2 {[%emt 0:00:49]} Nb4 {[%emt 0:04:57]} 12. Qb1 {[%emt 0:00:15] A sharp opening} f6 {[%emt 0:00:55]} 13. Bg3 {[%emt 0:00:46]} Nxg3 $146 {[%emt 0:15:41]} (13... e5 14. cxd5 Nxc3 15. dxc3 Nxd5 16. O-O Nxc3 17. Bc4+ Kh8 18. Qc2 Nd5 19. Rfd1 Qb6 {0-1 Keymer,V (2721)-Praggnanandhaa,R (2757) Biel GM1 Blitz 57th 2024 (4)}) 14. hxg3 {[%emt 0:00:18]} g6 {[%emt 0:00:46]} 15. a3 {[%emt 0:06:16]} Na6 {[%emt 0:00:09]} 16. d4 {[%emt 0:01:17]} Kg7 {[%emt 0:06:30]} 17. Qc1 {[%emt 0:04:34]} Bf8 {[%emt 0:12:01]} 18. e4 {[%emt 0:28:13]} Kg8 $1 {[%emt 0:00:38]} 19. Qf4 {[%emt 0:14:07]} (19. e5 {simplifies} Bg7 20. b4 Rf8 21. Qe3) 19... Qa5 {[%emt 0:05:00]} 20. Kd2 $36 {[%emt 0:03:01][%cal Oh1h7][%mdl 2048] White has some pressure.} dxe4 {[%emt 0:29:07] [#]} (20... e5 $11 {remains equal.} 21. Qh4 h5) 21. Qh4 $1 $16 {[%emt 0:14:08][%csl Gh1][%cal Rh4h7] Really sharp!} Re7 {[%emt 0:08:31]} (21... h5 22. Qxe4) 22. b4 {[%emt 0:08:14]} (22. Qxe4 e5 23. b4 Qd8 $14) 22... Qd8 {[%emt 0:04:12]} 23. Nxe4 {[%emt 0:01:58]} ({And not} 23. Qxe4 e5 24. d5 Bf5 $17) 23... Rf7 {[%emt 0:00:05]} 24. Bd3 {[%emt 0:02:53] White has more active pieces. The black rooks are passive.} h6 $2 {[%emt 0:03:14][%mdl 8192] This costs Black the game.} (24... Be7 $16) 25. Ne5 {[%emt 0:01:31] Threatens to win with Ng4.} g5 $2 {[%emt 0:03:30]} (25... Bg7 26. Nxf7 Kxf7) 26. Nxf7 {[%emt 0:00:22]} Kxf7 {[%emt 0:00:24]} 27. Qh5+ {[%emt 0:00:25]} Ke7 {[%emt 0:00:08]} 28. Nxf6 {[%emt 0:03:30]} Kxf6 $2 {[%emt 0:00:51]} (28... Bg7 $18 29. Ne4 Qxd4) 29. Qg6+ {[%emt 0:00:01]} Ke7 {[%emt 0:00:07]} 30. Qh7+ {[%emt 0:00:04] Weighted Error Value: White=0.29 (precise) /Black=0.80  Loses game:     	---       	Black=1      Mistake:       	---       	Black=3      Inaccurate:     	White=2     	Black=2      OK:         	White=8     	Black=9      Best:        	White=3     	Black=2      Strong:       	White=1     	Black=1} 1-0

[Event "Budapest One Week IM-A 03-2025"]
[Site "Budapest"]
[Date "2025.03.17"]
[Round "1.4"]
[White "Nakahara, Kan"]
[Black "Singh, Siddharth"]
[Result "1/2-1/2"]
[Annotator "TA"]
[ECO "B90"]
[WhiteElo "2113"]
[BlackElo "2239"]
[PlyCount "116"]
[EventDate "2025.03.17"]
[EventType "tourn"]
[EventCountry "HUN"]
[SourceTitle "playchess.com"]
[Source "ChessBase"]
[SourceQuality "1"]
[TimeControl "5400+30"]

{[%evp 17,116,3,16,-6,0,0,0,-10,0,2,25,0,8,0,0,-2,0,0,14,16,22,10,5,0,0,0,0,0,0,0,0,-19,-10,-21,-29,-15,-20,-25,0,-1,0,0,0,2,0,3,6,0,0,0,0,0,0,0,0,0,0,0,0,0,0,0,0,0,0,0,0,0,0,0,0,0,0,0,0,0,0,0,0,0,0,0,0,0,0,0,0,0,0,0,0,0,0,0,0,0,0,0,0,0,0]} 1. e4 {[%emt 0:00:02]} c5 {[%emt 0:00:05]} 2. Nf3 {[%emt 0:00:05]} d6 {[%emt 0:00:04]} 3. d4 {[%emt 0:00:03]} cxd4 {[%emt 0:00:03]} 4. Nxd4 {[%emt 0:00:02]} Nf6 {[%emt 0:00:06]} 5. Nc3 {[%emt 0:00:15]} a6 {[%emt 0:00:04]} 6. Be3 {[%emt 0:00:05]} e5 {[%emt 0:00:23]} 7. Nf3 {[%emt 0:00:44]} Be7 {[%emt 0:00:49]} 8. Bc4 {[%emt 0:00:28]} O-O {[%emt 0:00:58]} 9. O-O {[%emt 0:00:11]} Nc6 {[%emt 0:00:47]} 10. h3 {[%emt 0:00:21] B90: Sicilian Najdorf: Unusual White 6th moves, 6 Be3 Ng4 and 6 Be3 e5.} Be6 {[%emt 0:07:14]} 11. Bb3 {[%emt 0:00:15]} Na5 {[%emt 0:04:00]} 12. Bg5 {[%emt 0:12:37]} Nxb3 {[%emt 0:03:30]} 13. axb3 {[%emt 0:01:33]} Nd7 {[%emt 0:11:06]} 14. Bxe7 {[%emt 0:11:13]} Qxe7 {[%emt 0:00:07]} 15. Qd2 {[%emt 0:02:11]} Nf6 {[%emt 0:01:42]} 16. Rfd1 {[%emt 0:01:26]} Rfd8 {[%emt 0:00:14]} 17. Qe3 {[%emt 0:01:14]} Rac8 $146 {[%emt 0:04:57]} (17... Qc7 18. Ne1 d5 19. exd5 Nxd5 20. Nxd5 Bxd5 21. c4 Bc6 22. Nd3 f6 23. Nb4 a5 24. Nxc6 Qxc6 25. Rxd8+ Rxd8 26. Rxa5 {1-0 Goryachkina,A (2558)-Kuzmin,R (2167) Titled Tuesday intern op 05th Sep Early blitz 2023 (6)}) 18. Rd2 {[%emt 0:03:12]} Rc6 {[%emt 0:04:34]} 19. Rad1 {[%emt 0:03:24][%cal Of3e5]} Rdc8 {[%emt 0:00:20]} 20. Nh4 {[%emt 0:10:34]} b5 {[%emt 0:06:42]} 21. Nf5 {[%emt 0:02:48]} Bxf5 {[%emt 0:01:34]} 22. exf5 {[%emt 0:00:02]} h6 {[%emt 0:02:32]} 23. b4 {[%emt 0:05:57]} Kh7 {[%emt 0:09:25]} 24. Nd5 {[%emt 0:06:13]} Nxd5 {[%emt 0:00:25]} 25. Rxd5 {[%emt 0:00:03]} Rxc2 {[%emt 0:02:36]} 26. Rxd6 {[%emt 0:00:26]} R2c6 {[%emt 0:00:48]} (26... Rxb2 27. f6 gxf6 28. Qe4+ (28. Qf3 Rc1 $16) 28... Kh8 29. Qf5 $18 (29. Rxa6 Rxb4 30. Qf5 Qf8 $16) (29. Qh4 Rb1 $11)) 27. R6d5 {[%emt 0:05:34]} Qxb4 {[%emt 0:02:10]} 28. Qxe5 {[%emt 0:01:11] The position is equal.} Rf6 {[%emt 0:00:19]} 29. Rd8 {[%emt 0:08:19]} Qc5 {[%emt 0:04:24]} 30. Qxc5 {[%emt 0:01:27]} Rxc5 $11 {[%emt 0:00:05][%mdl 4096] Endgame KRR-KRR} 31. g4 {[%emt 0:01:03] [#]} Rfc6 {[%emt 0:00:14]} 32. R1d7 {[%emt 0:03:30]} Rc7 {[%emt 0:00:10]} 33. Kg2 {[%emt 0:00:35]} Rxd7 {[%emt 0:02:15]} 34. Rxd7 {[%emt 0:00:02] KR-KR} f6 {[%emt 0:00:26]} 35. Ra7 {[%emt 0:01:49]} Rc2 {[%emt 0:00:36]} 36. Rxa6 {[%emt 0:00:10]} Rxb2 {[%emt 0:00:06]} 37. Ra7 {[%emt 0:00:32]} b4 {[%emt 0:02:17]} 38. Rb7 {[%emt 0:00:15]} b3 {[%emt 0:02:29]} 39. h4 {[%emt 0:00:24]} Kg8 {[%emt 0:02:04]} 40. Rb8+ {[%emt 0:00:26]} Kf7 {[%emt 0:00:07]} 41. Rb7+ {[%emt 0:00:13]} Kf8 {[%emt 0:00:06]} 42. Rb8+ {[%emt 0:00:49]} Ke7 {[%emt 0:00:06]} 43. Rb7+ {[%emt 0:00:26]} Kd6 {[%emt 0:07:29]} 44. Rxg7 {[%emt 0:01:41]} Kc6 {[%emt 0:00:05] [#]} 45. Rg8 {[%emt 0:01:26]} Kc7 {[%emt 0:00:06]} 46. Rg7+ {[%emt 0:04:59]} Kc6 {[%emt 0:00:06]} 47. Rg8 {[%emt 0:00:06] aiming for g5.} Kc7 {[%emt 0:00:01]} 48. Re8 {[%emt 0:01:53]} Rc2 {[%emt 0:00:31] Strongly threatening ...b2.} 49. Re3 {[%emt 0:00:22]} b2 {[%emt 0:00:16]} 50. Rb3 {[%emt 0:00:06]} Kd6 {[%emt 0:00:09]} 51. Rb6+ {[%emt 0:05:13]} Ke5 {[%emt 0:00:33]} 52. Rb4 {[%emt 0:01:22]} Rc4 {[%emt 0:04:26]} 53. f4+ {[%emt 0:05:23]} Rxf4 {[%emt 0:00:07]} 54. Rb5+ {[%emt 0:00:21]} Ke4 {[%emt 0:00:28]} 55. Kg3 {[%emt 0:00:45]} Rf3+ {[%emt 0:00:09]} 56. Kg2 {[%emt 0:00:18]} Rf4 {[%emt 0:00:07]} 57. Kg3 {[%emt 0:00:08]} Rf3+ {[%emt 0:00:05]} 58. Kg2 {[%emt 0:00:04]} Rf4 {An interesting draw.   Weighted Error Value: White=0.02 (flawless) /Black=0.02 (flawless)   OK:         	White=24    	Black=24     Best:        	White=2     	Black=1} 1/2-1/2

[Event "Budapest One Week IM-A 03-2025"]
[Site "Budapest"]
[Date "2025.03.17"]
[Round "1.5"]
[White "Krizsany, Laszlo"]
[Black "Chakrabarty, Reyaansh"]
[Result "1-0"]
[Annotator "TA"]
[ECO "D59"]
[WhiteElo "2287"]
[BlackElo "2181"]
[PlyCount "105"]
[EventDate "2025.03.17"]
[EventType "tourn"]
[EventCountry "HUN"]
[SourceTitle "playchess.com"]
[Source "ChessBase"]
[SourceQuality "1"]
[TimeControl "5400+30"]

{[%evp 22,105,5,-4,6,0,6,0,0,0,0,0,0,0,0,0,0,0,0,0,0,-6,0,0,25,0,19,19,21,15,57,50,41,53,226,218,239,238,241,245,247,237,305,248,360,305,420,432,503,499,446,379,660,604,675,563,579,562,656,595,577,514,800,800,854,845,890,887,1190,641,769,756,955,988,977,952,1284,1314,1190,967,1100,919,1065,1060,29982,29982]} 1. d4 {[%emt 0:00:05]} d5 {[%emt 0:00:01]} 2. c4 {[%emt 0:00:06]} e6 {[%emt 0:00:08]} 3. Nc3 {[%emt 0:00:06]} Be7 {[%emt 0:00:03]} 4. Nf3 {[%emt 0:00:22]} Nf6 {[%emt 0:00:04]} 5. Bg5 {[%emt 0:00:16]} h6 {[%emt 0:00:13]} 6. Bh4 {[%emt 0:00:19]} O-O {[%emt 0:00:05]} 7. e3 {[%emt 0:00:11]} b6 {[%emt 0:00:04]} 8. cxd5 {[%emt 0:01:27]} Nxd5 {[%emt 0:00:09]} 9. Bxe7 {[%emt 0:00:11]} Qxe7 {[%emt 0:00:04]} 10. Nxd5 {[%emt 0:00:20]} exd5 {[%emt 0:00:06]} 11. Rc1 {[%emt 0:00:16]} Be6 {[%emt 0:00:03]} 12. Qa4 {[%emt 0:02:15]} c5 {[%emt 0:00:05] D59: Queen's Gambit Declined: Tartakower Defence: Main line (8 cxd5 Nxd5).} 13. b3 {[%emt 0:09:10]} Rc8 {[%emt 0:05:44][%cal Oc5c4]} 14. Be2 {[%emt 0:01:58]} Nd7 {[%emt 0:02:40][%cal Bb8d7,Bd7f6,Bf6e4,Be4g5,Bg5f3][%mdl 32] The position is equal.} 15. O-O {[%emt 0:01:21]} a5 $146 {[%emt 0:00:51]} (15... Nf6 16. Ne5 Qd6 17. Qa3 a5 18. Nd3 Ne4 19. dxc5 bxc5 20. Nf4 a4 {½-½ Contos,V (2438)-Valinova,J (2363) CZE-ch29 final email 2017}) 16. Rfd1 {[%emt 0:05:07]} Nf6 {[%emt 0:03:59]} 17. Ne5 {[%emt 0:07:00]} Ne4 {[%emt 0:08:54]} 18. Bf3 {[%emt 0:08:24]} Ng5 {[%emt 0:03:13]} 19. dxc5 {[%emt 0:05:21]} Nxf3+ {[%emt 0:17:36]} 20. Nxf3 {[%emt 0:00:07]} bxc5 {[%emt 0:00:03]} 21. Rc3 {[%emt 0:03:30]} Qa7 {[%emt 0:12:16]} 22. Rdc1 {[%emt 0:03:11]} Rc7 {[%emt 0:03:55]} 23. h3 {[%emt 0:06:51]} (23. Qf4 $5) 23... Rac8 {[%emt 0:02:45][%cal Ba8c8,Bc8e8,Be8e2][%mdl 32]} 24. Qf4 {[%emt 0:01:15]} Qb6 {[%emt 0:01:25] [#]} 25. Nd4 $1 {[%emt 0:06:53]} Ra7 {[%emt 0:05:38]} (25... c4 26. a3) 26. Qe5 {[%emt 0:02:59]} Rac7 {[%emt 0:05:17][%cal Ba7c7,Bc7c8,Bc8e8,Be8e7,Be7f7][%mdl 32]} 27. e4 {[%emt 0:11:33]} Bd7 $2 {[%emt 0:04:45] This move loses the game for Black.} (27... dxe4 $14 28. Nxe6 Qxe6 29. Qxe6 (29. Rxc5 $2 Qxe5 30. Rxe5 Rxc1+ $19) 29... fxe6) 28. exd5 $40 {[%emt 0:04:15][%cal Od4c6][%mdl 128] Black is in trouble.} Re8 {[%emt 0:00:03]} 29. Qf4 {[%emt 0:01:31]} Rcc8 {[%emt 0:00:04]} 30. Nf3 {[%emt 0:01:57][%cal Bd4f3,Bf3d2,Bd2c4][%mdl 32]} f6 {[%emt 0:02:09]} 31. Nd2 {[%emt 0:01:26]} Re2 {[%emt 0:02:11]} 32. Nc4 {[%emt 0:00:51]} Qa6 {[%emt 0:00:13]} (32... Qc7 {was necessary.} 33. Qxc7 Rxc7 34. Nxa5 Rxa2) 33. a4 {[%emt 0:02:05]} Rce8 {[%emt 0:00:24]} 34. Qc7 {[%emt 0:03:57][%csl LRa5,LRc5,LRd7]} R8e7 {[%emt 0:01:52]} 35. d6 {[%emt 0:02:38]} Rf7 {[%emt 0:00:06]} 36. Qxa5 {[%emt 0:00:49]} ({Less strong is} 36. Nxa5 Be8 $16) 36... Qb7 {[%emt 0:00:16]} (36... Qxa5 37. Nxa5 Rd2) 37. Qxc5 {[%emt 0:00:58]} Re8 {[%emt 0:00:52]} 38. Ne3 {[%emt 0:01:26]} Re5 {[%emt 0:00:56]} 39. Qd4 {[%emt 0:00:27]} Rg5 {[%emt 0:00:03]} 40. h4 {[%emt 0:00:56]} Re5 {[%emt 0:00:19]} 41. Rd3 {[%emt 0:03:40]} Kh7 {[%emt 0:04:04]} (41... Be6 $142 42. Qc3 Rd7 43. Qc8+ Kh7 44. Qxb7 Rxb7) 42. Rc7 {[%emt 0:00:26]} Qa8 {[%emt 0:00:18]} 43. Nd5 {[%emt 0:01:12]} Qa5 {[%emt 0:00:30]} 44. Rd1 {[%emt 0:00:55]} Re6 {[%emt 0:02:07]} 45. Nf4 {[%emt 0:00:56]} Re8 {[%emt 0:02:17]} 46. Qd5 {[%emt 0:01:12]} Re1+ {[%emt 0:00:19]} 47. Kh2 {[%emt 0:00:18]} Qxd5 {[%emt 0:00:35]} 48. Rxd5 {[%emt 0:00:02]} g5 {[%emt 0:00:21][%cal Bg7g5,Bg5h4,Bh4h3][%mdl 32]} 49. Nd3 {[%emt 0:00:34]} Rd1 {[%emt 0:00:20]} 50. Nb4 {[%emt 0:00:07]} Rb1 {[%emt 0:00:06]} 51. Rd3 {[%emt 0:00:19]} gxh4 {[%emt 0:00:41]} 52. Nd5 {[%emt 0:00:15][%cal Oc7d7] And now Rxd7! would win.} h3 {[%emt 0:00:03] [#]} 53. Rxd7 $1 {[%emt 0:00:20] Weighted Error Value: White=0.18 (very precise) /Black=0.56  Loses game:     	---       	Black=1      Mistake:       	---       	Black=3      Inaccurate:     	---       	Black=2      OK:         	White=15    	Black=10     Best:        	White=1     	---} 1-0